bitfinex/quotes_BTCUSD_20241226
["timestamp","ask_amount","ask_price","bid_price","bid_amount"]
[1735220090825,0.12686238,95419.0,95418.0,0.00408148]
[1735220092970,0.12686238,95419.0,95418.0,0.00416698]
[1735220095670,0.12686238,95419.0,95418.0,0.23677098]
[1735220095941,0.1242,95419.0,95418.0,0.23677098]
[1735220096194,0.001,95419.0,95418.0,0.3407573]
[1735220096446,0.001,95419.0,95418.0,0.23677098]
[1735220096928,0.001,95419.0,95418.0,0.23277098]
[1735220097136,0.001,95419.0,95418.0,0.23977098]
[1735220097345,0.0816,95428.0,95427.0,0.209584]
[1735220097549,0.0816,95428.0,95427.0,0.232584]
[1735220097752,0.0473,95432.0,95428.0,0.023]
[1735220098115,0.0473,95432.0,95428.0,0.209579]
[1735220098316,0.0473,95432.0,95431.0,0.023]
[1735220098530,0.0473,95432.0,95428.0,0.209579]
[1735220098701,0.0473,95432.0,95429.0,0.023]
[1735220098924,0.0473,95432.0,95431.0,0.023]
[1735220099104,0.0816,95436.0,95433.0,0.023]
[1735220099308,0.0816,95436.0,95435.0,0.023]
[1735220099717,0.04996238,95444.0,95437.0,0.023]
[1735220100077,0.0473,95444.0,95437.0,0.023]
[1735220100285,0.0473,95444.0,95438.0,0.20956]
[1735220100486,0.04996238,95444.0,95439.0,0.023]
[1735220100708,0.0473,95458.0,95439.0,0.023]
[1735220100918,0.0473,95458.0,95439.0,0.19320319]
[1735220100919,0.0816,95454.0,95439.0,0.19320319]
[1735220101122,0.0473,95458.0,95439.0,0.19320319]
[1735220101323,0.00266238,95455.0,95439.0,0.12803399]
[1735220101771,0.0473,95458.0,95439.0,0.66883316]
[1735220101984,0.0473,95458.0,95439.0,0.66778549]
[1735220102187,0.0473,95458.0,95439.0,0.67378549]
[1735220102590,0.0473,95458.0,95439.0,0.67578549]
[1735220103578,0.0473,95458.0,95439.0,0.66978549]
[1735220103985,0.0473,95458.0,95439.0,0.67878549]
[1735220104354,0.0473,95458.0,95439.0,0.69989447]
[1735220106169,0.0473,95458.0,95439.0,0.71050541]
[1735220113161,0.0492,95469.0,95468.0,0.209494]
[1735220113383,0.0492,95469.0,95468.0,0.232494]
[1735220113618,0.0028,95479.0,95471.0,0.023]
[1735220113832,0.0028,95479.0,95478.0,0.232472]
[1735220114105,0.0028,95479.0,95478.0,0.93195655]
[1735220114505,0.0028,95479.0,95478.0,0.93203803]
[1735220115042,0.0028,95479.0,95478.0,0.94003803]
[1735220115582,0.0028,95479.0,95478.0,0.93903803]
[1735220115787,0.0027,95479.0,95478.0,1.30758311]
[1735220116443,0.002871,95479.0,95478.0,1.30058311]
[1735220116641,0.002871,95479.0,95478.0,1.20058311]
[1735220117014,0.002871,95479.0,95478.0,1.31258311]
[1735220117184,0.002771,95479.0,95478.0,1.30358311]
[1735220117419,0.002771,95479.0,95478.0,1.30958311]
[1735220117622,0.002771,95479.0,95478.0,1.31258311]
[1735220118052,0.002771,95479.0,95478.0,1.06054643]
[1735220118486,0.002771,95479.0,95478.0,1.16054643]
[1735220118686,0.002771,95479.0,95478.0,1.25788405]
[1735220119375,0.002771,95479.0,95478.0,1.26819729]
[1735220119575,0.0001712,95505.0,95481.0,0.19733762]
[1735220119759,0.0001712,95505.0,95481.0,0.47537092]
[1735220120125,2e-07,95482.0,95481.0,0.47432394]
[1735220120480,0.0001712,95505.0,95492.0,0.09733762]
[1735220120681,0.0001712,95505.0,95504.0,0.75021417]
[1735220121328,0.08093358,95505.0,95504.0,0.75021417]
[1735220122087,0.13043358,95505.0,95504.0,0.56379917]
[1735220123120,0.13043358,95505.0,95504.0,0.56679917]
[1735220123333,0.13143358,95505.0,95504.0,0.56379917]
[1735220123728,0.13043358,95505.0,95504.0,0.58527641]
[1735220124119,0.13143358,95505.0,95504.0,0.58527641]
[1735220124328,0.13143358,95505.0,95504.0,0.58827641]
[1735220124537,0.13043358,95505.0,95504.0,0.58827641]
[1735220124910,0.13143358,95505.0,95504.0,0.58827641]
[1735220125471,0.13143358,95505.0,95504.0,0.04747724]
[1735220125472,0.1287712,95505.0,95504.0,0.04747724]
[1735220126828,0.0011712,95505.0,95504.0,0.09410926]
[1735220127034,0.0011712,95505.0,95504.0,0.09515621]
[1735220127671,0.0011712,95505.0,95504.0,0.7399417]
[1735220127841,0.0011712,95505.0,95504.0,0.83623237]
[1735220128074,0.0001712,95505.0,95504.0,0.98623237]
[1735220128704,0.0001712,95505.0,95504.0,0.88889475]
[1735220128911,0.0001712,95505.0,95504.0,0.69226273]
[1735220129121,0.0001712,95505.0,95504.0,0.68926273]
[1735220129566,0.0001712,95505.0,95504.0,0.58527641]
[1735220129770,0.0011712,95505.0,95504.0,0.58527641]
[1735220129984,0.0011712,95505.0,95504.0,0.58827641]
[1735220130220,0.0792712,95505.0,95504.0,0.56227641]
[1735220130481,0.13043358,95505.0,95504.0,0.54079917]
[1735220130726,0.13043358,95505.0,95504.0,0.011]
[1735220131187,0.13043358,95505.0,95504.0,0.009]
[1735220131414,0.24848038,95505.0,95504.0,0.009]
[1735220131653,0.00266238,95481.0,95466.0,0.54079917]
[1735220131894,0.00266238,95481.0,95460.0,0.39743311]
[1735220131895,0.00266238,95479.0,95474.0,0.20948]
[1735220132134,0.00266238,95479.0,95470.0,0.209488]
[1735220132426,0.00371048,95479.0,95470.0,0.209488]
[1735220132654,0.00371048,95479.0,95466.0,0.209497]
[1735220132655,0.18807816,95479.0,95466.0,0.209497]
[1735220133169,0.18807816,95479.0,95478.0,0.00316698]
[1735220133430,0.18807816,95479.0,95478.0,0.00016698]
[1735220133687,0.00266238,95465.0,95460.0,0.20951]
[1735220133943,0.35877841,95479.0,95421.0,0.09393908]
[1735220133944,0.00266238,95457.0,95452.0,0.209528]
[1735220134174,0.00266238,95452.0,95449.0,0.209535]
[1735220135671,0.00266238,95452.0,95451.0,0.232531]
[1735220136424,0.00266238,95450.0,95449.0,0.004]
[1735220136829,0.00266238,95450.0,95446.0,0.54079917]
[1735220137043,0.0010481,95449.0,95447.0,0.20954]
[1735220137217,0.00266238,95450.0,95447.0,0.20954]
[1735220137628,0.00436781,95449.0,95447.0,0.20954]
[1735220138114,0.00598209,95449.0,95448.0,0.023]
[1735220138519,0.00266238,95449.0,95448.0,0.023]
[1735220139351,0.00266238,95448.0,95447.0,8.55e-05]
[1735220139770,0.00371048,95448.0,95447.0,8.55e-05]
[1735220139973,0.0070293,95448.0,95447.0,8.55e-05]
[1735220140427,0.00371048,95448.0,95447.0,8.55e-05]
[1735220140847,0.00266238,95448.0,95447.0,8.55e-05]
[1735220141051,0.00366238,95448.0,95447.0,8.55e-05]
[1735220141371,0.00015555,95450.0,95448.0,0.209538]
[1735220142002,0.00015555,95450.0,95449.0,0.023]
[1735220143343,0.00115555,95450.0,95449.0,0.029]
[1735220143586,0.00215555,95450.0,95449.0,0.023]
[1735220143989,0.00215555,95450.0,95449.0,0.02404761]
[1735220144191,0.00115555,95450.0,95449.0,0.17235554]
[1735220144603,0.00115555,95450.0,95449.0,0.17335554]
[1735220144780,0.00115555,95450.0,95449.0,0.12903393]
[1735220144980,0.00215555,95450.0,95449.0,0.13603393]
[1735220145321,0.00115555,95450.0,95449.0,0.12903393]
[1735220145492,0.00115555,95450.0,95449.0,0.13803393]
[1735220145723,0.00215555,95450.0,95449.0,0.13803393]
[1735220146311,0.0481,95471.0,95451.0,0.023]
[1735220146519,0.0481,95471.0,95470.0,0.209489]
[1735220146861,0.0481,95471.0,95470.0,0.232489]
[1735220147475,0.0481,95471.0,95462.0,0.209505]
[1735220147476,0.00266238,95467.0,95462.0,0.209505]
[1735220147872,0.0501,95471.0,95468.0,0.023]
[1735220148123,0.0501,95471.0,95470.0,0.023]
[1735220148549,0.0754,95474.0,95472.0,0.023]
[1735220149838,0.0754,95474.0,95473.0,0.232483]
[1735220150263,0.00266238,95482.0,95474.0,0.023]
[1735220150477,0.00266238,95482.0,95481.0,0.209465]
[1735220151400,0.00566238,95482.0,95481.0,0.232465]
[1735220151598,0.00581839,95482.0,95481.0,0.232465]
[1735220152205,0.00981839,95482.0,95481.0,0.232465]
[1735220152807,0.00681839,95482.0,95481.0,0.232465]
[1735220153244,0.00981839,95482.0,95481.0,0.234465]
[1735220153449,0.00581839,95482.0,95478.0,0.209471]
[1735220153648,0.0010481,95481.0,95479.0,0.023]
[1735220153849,0.0010481,95481.0,95480.0,0.232467]
[1735220154057,0.00115601,95482.0,95481.0,0.123]
[1735220154264,0.00115601,95482.0,95481.0,0.023]
[1735220154466,0.00015601,95482.0,95481.0,0.023]
[1735220154890,0.00015601,95482.0,95481.0,0.025]
[1735220155506,0.00015601,95482.0,95481.0,0.0441506]
[1735220155716,0.00015601,95482.0,95481.0,0.0471506]
[1735220156150,0.00015601,95482.0,95481.0,0.0441506]
[1735220156353,0.00015601,95482.0,95481.0,0.0491506]
[1735220156557,0.00115601,95482.0,95481.0,0.0441506]
[1735220157122,0.00015601,95482.0,95481.0,0.0441506]
[1735220157298,0.00015601,95482.0,95481.0,0.0451506]
[1735220158023,0.00115601,95482.0,95481.0,0.0521506]
[1735220159182,0.00015601,95482.0,95481.0,0.21220716]
[1735220159381,0.00015601,95482.0,95481.0,0.11220716]
[1735220159599,0.00115601,95482.0,95481.0,0.12425441]
[1735220159797,0.00115601,95482.0,95481.0,0.21525441]
[1735220160001,0.00115601,95482.0,95481.0,0.21619348]
[1735220160228,0.00115601,95482.0,95481.0,0.14813692]
[1735220160577,0.00115601,95482.0,95481.0,0.0471506]
[1735220161211,0.00215601,95482.0,95481.0,0.0561506]
[1735220161417,0.00115601,95482.0,95481.0,0.0471506]
[1735220161622,0.00115601,95482.0,95481.0,0.58794977]
[1735220161814,0.00215601,95482.0,95481.0,0.59694977]
[1735220163052,0.00232701,95482.0,95481.0,0.59694977]
[1735220164717,0.00232701,95482.0,95481.0,0.0561506]
[1735220165324,0.00232701,95482.0,95481.0,0.16118421]
[1735220165934,0.00232701,95482.0,95481.0,0.31118421]
[1735220166135,0.00232701,95482.0,95481.0,0.31013692]
[1735220166499,0.00232701,95482.0,95481.0,0.85093609]
[1735220168830,0.00232701,95482.0,95481.0,0.74694977]
[1735220169067,0.00222701,95482.0,95481.0,0.74694977]
[1735220169639,0.08172701,95482.0,95481.0,0.57394977]
[1735220169844,0.13914939,95482.0,95481.0,0.012]
[1735220170256,0.14273103,95482.0,95481.0,0.012]
[1735220170678,0.00266238,95470.0,95469.0,0.20949]
[1735220170899,0.08216238,95470.0,95469.0,0.23249]
[1735220172750,0.08216238,95470.0,95469.0,0.23749]
[1735220173652,0.08216238,95470.0,95469.0,0.21449]
[1735220173860,0.13196238,95470.0,95469.0,0.20949]
[1735220174079,0.1358908,95470.0,95469.0,0.20949]
[1735220174283,0.1368908,95470.0,95469.0,0.21549]
[1735220174486,0.1368908,95470.0,95469.0,0.21649]
[1735220174897,0.1368908,95470.0,95469.0,0.21049]
[1735220175100,0.1358908,95470.0,95469.0,0.21049]
[1735220175274,0.1358908,95470.0,95469.0,0.21449]
[1735220175798,0.1368908,95470.0,95469.0,0.22049]
[1735220175957,0.1368908,95470.0,95469.0,0.21949]
[1735220177023,0.1368908,95470.0,95469.0,0.22049]
[1735220179846,0.1368908,95470.0,95469.0,0.32049]
[1735220180110,0.1368908,95470.0,95469.0,0.22049]
[1735220180318,0.1358908,95470.0,95469.0,0.20949]
[1735220180530,0.1368908,95470.0,95469.0,0.21649]
[1735220180727,0.1368908,95470.0,95469.0,0.21049]
[1735220181118,0.1378908,95470.0,95469.0,0.21549]
[1735220181327,0.1358908,95470.0,95469.0,0.20949]
[1735220181532,0.1358908,95470.0,95469.0,0.21049]
[1735220181832,0.1358908,95470.0,95469.0,0.21249]
[1735220182274,0.1358908,95470.0,95469.0,0.31249]
[1735220182487,0.13322842,95470.0,95469.0,0.33549]
[1735220182695,0.13322842,95470.0,95469.0,0.33449]
[1735220182904,0.08342842,95470.0,95469.0,0.23449]
[1735220183116,0.0805,95470.0,95469.0,0.23449]
[1735220183525,0.0795,95470.0,95469.0,0.23249]
[1735220183773,0.0795,95470.0,95469.0,0.23949]
[1735220183980,0.0805,95470.0,95469.0,0.24049]
[1735220184363,0.001,95470.0,95469.0,0.24049]
[1735220186493,0.001,95470.0,95469.0,0.30644]
[1735220186674,0.001,95470.0,95469.0,0.34049]
[1735220186919,0.001,95470.0,95469.0,0.24049]
[1735220187546,0.00266238,95471.0,95469.0,0.23249]
[1735220187663,0.00266238,95470.0,95469.0,0.21049]
[1735220187865,0.00366238,95470.0,95469.0,0.2415755]
[1735220189476,0.00366238,95470.0,95469.0,0.2405755]
[1735220189676,0.00266238,95470.0,95469.0,0.2335755]
[1735220189889,0.00266238,95470.0,95469.0,0.2385755]
[1735220190108,0.00266238,95470.0,95469.0,0.2325755]
[1735220190495,0.00266238,95470.0,95469.0,0.2415755]
[1735220190721,0.00366238,95470.0,95469.0,0.2415755]
[1735220190934,0.00366238,95470.0,95469.0,0.2335755]
[1735220191230,0.00366238,95470.0,95469.0,0.2385755]
[1735220191432,0.00266238,95470.0,95469.0,0.2385755]
[1735220191646,0.00266238,95470.0,95469.0,0.2435755]
[1735220192025,0.00266238,95470.0,95469.0,0.2425755]
[1735220192881,0.081,95478.0,95477.0,0.023]
[1735220193091,0.0769,95487.0,95481.0,0.123]
[1735220193503,0.0769,95487.0,95481.0,0.22698632]
[1735220193709,0.14030167,95497.0,95481.0,0.76778549]
[1735220194145,0.09569683,95495.0,95481.0,0.66778549]
[1735220194352,0.00321048,95495.0,95481.0,0.66778549]
[1735220194559,0.00216238,95494.0,95481.0,0.66778549]
[1735220195251,0.00216238,95492.0,95481.0,0.56379917]
[1735220195882,0.00216238,95492.0,95481.0,0.58429912]
[1735220196520,0.00216238,95492.0,95481.0,0.59529912]
[1735220196843,0.00216238,95492.0,95481.0,0.58629912]
[1735220197050,0.00216238,95492.0,95481.0,0.59429912]
[1735220197252,0.00216238,95492.0,95481.0,0.59229912]
[1735220197858,0.00216238,95492.0,95481.0,0.58429912]
[1735220198079,0.00216238,95492.0,95481.0,0.59229912]
[1735220198574,0.00216238,95492.0,95481.0,0.59429912]
[1735220199195,0.00216238,95492.0,95481.0,0.59229912]
[1735220199378,0.00216238,95492.0,95481.0,0.59429912]
[1735220199912,0.00216238,95492.0,95481.0,0.58429912]
[1735220200320,0.00216238,95492.0,95481.0,0.59529912]
[1735220200879,0.00216238,95492.0,95481.0,0.05449995]
[1735220201083,0.0769,95499.0,95481.0,0.25953348]
[1735220201282,0.0475,95503.0,95481.0,0.15848627]
[1735220201488,0.08056238,95507.0,95504.0,0.309415]
[1735220201693,0.08056238,95507.0,95504.0,0.332415]
[1735220202104,0.08056238,95507.0,95504.0,0.232415]
[1735220202933,0.0726039,95507.0,95506.0,0.23241]
[1735220203344,0.0726039,95507.0,95506.0,0.20941]
[1735220203459,0.0726039,95507.0,95502.0,0.209419]
[1735220203664,0.00216238,95503.0,95502.0,0.209419]
[1735220204235,0.00216238,95503.0,95502.0,0.25337165]
[1735220204430,0.00216238,95505.0,95504.0,0.209415]
[1735220205266,0.00216238,95489.0,95488.0,0.1]
[1735220205468,0.05166238,95482.0,95481.0,0.09393908]
[1735220205671,0.1556487,95482.0,95481.0,0.09393908]
[1735220205874,0.1556487,95482.0,95476.0,0.18792211]
[1735220205875,0.39277937,95482.0,95476.0,0.09393908]
[1735220206078,0.25503442,95481.0,95476.0,0.09393908]
[1735220206291,0.00511687,95480.0,95476.0,0.09393908]
[1735220206492,0.0010481,95479.0,95476.0,0.09393908]
[1735220206712,0.00512145,95478.0,95469.0,8.55e-05]
[1735220206909,0.0010481,95477.0,95469.0,0.00024151]
[1735220207115,0.00511655,95476.0,95469.0,0.00024151]
[1735220207325,0.00216238,95470.0,95469.0,0.00024151]
[1735220207527,0.08917927,95470.0,95469.0,0.00024151]
[1735220207729,0.08511048,95470.0,95469.0,0.00024151]
[1735220208060,0.09020862,95470.0,95469.0,0.00024151]
[1735220209823,0.14010862,95470.0,95469.0,0.00024151]
[1735220210032,0.14010862,95470.0,95469.0,0.00324151]
[1735220210290,0.14010862,95470.0,95450.0,8.55e-05]
[1735220210291,0.13346238,95451.0,95450.0,8.55e-05]
[1735220210626,0.13956769,95451.0,95450.0,8.55e-05]
[1735220210828,0.26037483,95451.0,95450.0,8.55e-05]
[1735220210998,0.39250591,95451.0,95450.0,8.55e-05]
[1735220211643,0.0815,95449.0,95419.0,0.209601]
[1735220211843,0.10503442,95448.0,95425.0,0.209588]
[1735220211989,0.26018607,95448.0,95426.0,0.023]
[1735220212204,0.25913797,95448.0,95426.0,0.023]
[1735220213690,0.32399801,95448.0,95447.0,0.0010855]
[1735220213874,0.31899801,95448.0,95447.0,8.55e-05]
[1735220214293,0.40549801,95448.0,95447.0,0.0010855]
[1735220214492,0.34863797,95448.0,95447.0,0.0010855]
[1735220214947,0.34563797,95448.0,95447.0,0.0010855]
[1735220215178,0.34063797,95448.0,95447.0,8.55e-05]
[1735220215385,0.34363797,95448.0,95447.0,8.55e-05]
[1735220215810,0.48346238,95438.0,95409.0,8.57e-05]
[1735220215960,0.72897868,95438.0,95409.0,8.57e-05]
[1735220216166,0.73376259,95438.0,95409.0,8.57e-05]
[1735220216581,0.73376259,95438.0,95412.0,0.023]
[1735220216582,0.63170021,95438.0,95412.0,0.023]
[1735220216769,0.63376259,95438.0,95417.0,0.209604]
[1735220217163,0.63389857,95438.0,95428.0,0.1]
[1735220217388,0.63389857,95438.0,95418.0,8.55e-05]
[1735220221443,0.00213598,95438.0,95437.0,0.0230855]
[1735220221671,0.00013598,95438.0,95437.0,0.76787099]
[1735220221882,0.00113598,95438.0,95437.0,0.78697099]
[1735220222080,0.00113598,95438.0,95437.0,0.70817903]
[1735220222286,0.00113598,95438.0,95437.0,0.68907903]
[1735220222499,0.00013598,95438.0,95437.0,0.68907903]
[1735220223110,0.00013598,95438.0,95437.0,0.58509271]
[1735220223320,0.00219836,95438.0,95437.0,0.58509271]
[1735220223879,0.00319836,95438.0,95437.0,0.59209271]
[1735220224083,0.00319836,95438.0,95437.0,0.58509271]
[1735220224286,0.00319836,95438.0,95437.0,0.58709271]
[1735220224466,0.00319836,95438.0,95437.0,0.58909271]
[1735220224839,0.00319836,95438.0,95437.0,0.04629354]
[1735220225301,0.00319836,95438.0,95437.0,0.0270855]
[1735220225728,0.00219836,95438.0,95437.0,0.0230855]
[1735220225982,0.00319836,95438.0,95437.0,0.0230855]
[1735220226200,0.00319836,95438.0,95437.0,0.0250855]
[1735220226353,0.00319836,95438.0,95437.0,0.0230855]
[1735220228967,0.00113598,95438.0,95437.0,0.27687075]
[1735220229198,0.00113598,95438.0,95437.0,0.2326475]
[1735220230163,0.00013598,95438.0,95437.0,0.2376475]
[1735220230587,0.00013598,95438.0,95437.0,0.2346475]
[1735220231009,0.00219836,95438.0,95437.0,0.1230855]
[1735220231210,0.08489836,95438.0,95437.0,8.55e-05]
[1735220231469,0.09430456,95438.0,95437.0,8.55e-05]
[1735220231954,0.09330456,95438.0,95437.0,8.55e-05]
[1735220232156,0.09330456,95438.0,95437.0,0.0020855]
[1735220232418,0.09330456,95438.0,95437.0,0.0070855]
[1735220232774,0.09330456,95438.0,95437.0,0.0020855]
[1735220233609,0.09430456,95438.0,95437.0,8.55e-05]
[1735220233810,0.09530456,95438.0,95437.0,8.55e-05]
[1735220234452,0.09430456,95438.0,95437.0,8.55e-05]
[1735220234786,0.09530456,95438.0,95437.0,8.55e-05]
[1735220235152,0.09330456,95438.0,95437.0,8.55e-05]
[1735220235505,0.09430456,95438.0,95437.0,8.55e-05]
[1735220236097,0.09530456,95438.0,95437.0,8.55e-05]
[1735220236806,0.09330456,95438.0,95437.0,8.55e-05]
[1735220237041,0.09430456,95438.0,95437.0,8.55e-05]
[1735220237595,0.09692184,95438.0,95437.0,8.55e-05]
[1735220237952,0.09792184,95438.0,95437.0,8.55e-05]
[1735220238445,0.09692184,95438.0,95437.0,8.55e-05]
[1735220238649,0.09892184,95438.0,95437.0,8.55e-05]
[1735220239003,0.09792184,95438.0,95437.0,8.55e-05]
[1735220239205,0.09792184,95438.0,95437.0,0.0230855]
[1735220239550,0.11255402,95438.0,95437.0,8.55e-05]
[1735220239747,0.09792184,95438.0,95437.0,8.55e-05]
[1735220240301,0.09792184,95438.0,95437.0,0.0020855]
[1735220240812,0.20090816,95438.0,95437.0,0.0020855]
[1735220241013,0.20190816,95438.0,95437.0,0.0020855]
[1735220241220,0.22693898,95438.0,95437.0,0.0020855]
[1735220241421,0.22489088,95438.0,95437.0,0.0020855]
[1735220241623,0.19986006,95438.0,95437.0,0.0020855]
[1735220241820,0.20190816,95438.0,95437.0,0.0020855]
[1735220242022,0.35190816,95438.0,95437.0,0.0020855]
[1735220242221,0.45086006,95438.0,95437.0,8.55e-05]
[1735220242445,0.45186006,95438.0,95437.0,8.55e-05]
[1735220242646,0.34979768,95438.0,95437.0,8.55e-05]
[1735220242852,0.35186006,95438.0,95437.0,8.55e-05]
[1735220243048,0.45086006,95438.0,95437.0,8.55e-05]
[1735220243204,0.45486006,95438.0,95437.0,8.55e-05]
[1735220243405,0.35386006,95438.0,95437.0,8.55e-05]
[1735220243611,0.10887374,95438.0,95437.0,0.0010855]
[1735220243897,0.62982184,95438.0,95437.0,8.55e-05]
[1735220244053,0.63071136,95438.0,95437.0,8.55e-05]
[1735220244255,0.63777374,95438.0,95437.0,8.55e-05]
[1735220244470,0.63377374,95438.0,95437.0,8.55e-05]
[1735220245020,0.63577374,95438.0,95437.0,8.55e-05]
[1735220245433,0.70419111,95438.0,95437.0,8.55e-05]
[1735220245650,0.87262399,95438.0,95437.0,8.55e-05]
[1735220246466,0.87562399,95438.0,95437.0,8.55e-05]
[1735220246684,0.87262399,95438.0,95437.0,8.55e-05]
[1735220246926,0.87062399,95438.0,95437.0,8.55e-05]
[1735220247149,0.87362399,95438.0,95437.0,8.55e-05]
[1735220247358,0.96752639,95438.0,95437.0,8.55e-05]
[1735220247560,0.87562399,95438.0,95437.0,8.55e-05]
[1735220253256,0.97562399,95438.0,95437.0,8.55e-05]
[1735220254071,0.97362399,95438.0,95437.0,8.55e-05]
[1735220254297,0.97062399,95438.0,95437.0,8.55e-05]
[1735220255251,1.01722399,95438.0,95437.0,8.55e-05]
[1735220255451,1.12621031,95438.0,95437.0,8.55e-05]
[1735220255561,1.13521031,95438.0,95437.0,0.0010855]
[1735220255789,1.23521031,95438.0,95437.0,0.0010855]
[1735220256012,1.23021031,95438.0,95437.0,0.0010855]
[1735220256220,1.23721031,95438.0,95437.0,0.0020855]
[1735220256426,1.02422399,95438.0,95437.0,0.0010855]
[1735220256649,1.01722399,95438.0,95437.0,8.55e-05]
[1735220257070,1.02222399,95438.0,95437.0,8.55e-05]
[1735220257257,1.03122399,95438.0,95437.0,0.0010855]
[1735220257876,1.13122399,95438.0,95437.0,0.0010855]
[1735220258076,1.13521031,95438.0,95437.0,0.0010855]
[1735220258284,1.23521031,95438.0,95437.0,0.0010855]
[1735220258484,1.13521031,95438.0,95437.0,0.0010855]
[1735220258688,1.23521031,95438.0,95437.0,0.0010855]
[1735220258862,1.13521031,95438.0,95437.0,0.0010855]
[1735220259286,1.23521031,95438.0,95437.0,0.0010855]
[1735220259715,1.13521031,95438.0,95437.0,0.0010855]
[1735220260805,1.23521031,95438.0,95437.0,0.0010855]
[1735220261427,1.13521031,95438.0,95437.0,0.0010855]
[1735220262283,1.23521031,95438.0,95437.0,0.0010855]
[1735220262703,1.13521031,95438.0,95437.0,0.0010855]
[1735220262910,1.23521031,95438.0,95437.0,0.0010855]
[1735220263119,0.10206238,95419.0,95409.0,0.0230857]
[1735220263442,0.81436506,95419.0,95409.0,8.57e-05]
[1735220263656,0.81436506,95419.0,95414.0,0.209611]
[1735220263657,0.63227874,95419.0,95414.0,0.209611]
[1735220263979,0.63227874,95419.0,95418.0,0.78885034]
[1735220263980,0.53021636,95419.0,95418.0,0.78885034]
[1735220264116,0.50561681,95419.0,95418.0,0.70795034]
[1735220264458,0.50761681,95419.0,95418.0,0.70795034]
[1735220264889,0.50861681,95419.0,95418.0,0.70795034]
[1735220265410,0.50761681,95419.0,95418.0,0.70795034]
[1735220265852,0.50761681,95419.0,95418.0,0.71195034]
[1735220266089,0.50561681,95419.0,95418.0,0.71195034]
[1735220266700,0.50561681,95419.0,95418.0,0.60796402]
[1735220267312,0.50561681,95419.0,95418.0,0.60896402]
[1735220267517,0.50561681,95419.0,95418.0,0.60796402]
[1735220267722,0.50561681,95419.0,95418.0,0.71195034]
[1735220267948,0.50661681,95419.0,95418.0,0.59786402]
[1735220270522,0.50561681,95419.0,95418.0,0.58886402]
[1735220270859,0.50661681,95419.0,95418.0,0.59786402]
[1735220271067,0.50661681,95419.0,95418.0,0.59386402]
[1735220271276,0.50661681,95419.0,95418.0,0.58786402]
[1735220271649,0.50661681,95419.0,95418.0,0.58486402]
[1735220272092,0.50661681,95419.0,95418.0,0.58686402]
[1735220272507,0.50761681,95419.0,95418.0,0.59286402]
[1735220272710,0.50761681,95419.0,95418.0,0.59586402]
[1735220272911,0.50761681,95419.0,95418.0,0.05506485]
[1735220273326,0.45507681,95419.0,95418.0,0.05506485]
[1735220273543,0.45507681,95419.0,95418.0,0.06067613]
[1735220273939,0.45307681,95419.0,95418.0,0.05267613]
[1735220274142,0.45307681,95419.0,95418.0,0.05667613]
[1735220274874,0.45307681,95419.0,95418.0,0.05967613]
[1735220275413,0.40053681,95419.0,95418.0,0.05667613]
[1735220275798,0.36219991,95419.0,95418.0,0.06867613]
[1735220275970,0.36219991,95419.0,95418.0,0.05367613]
[1735220276381,0.36219991,95419.0,95418.0,0.06167613]
[1735220276991,0.36219991,95419.0,95418.0,0.06867613]
[1735220276992,0.30965991,95419.0,95418.0,0.06867613]
[1735220277152,0.30965991,95419.0,95418.0,0.06467613]
[1735220277354,0.30965991,95419.0,95418.0,0.06206485]
[1735220277754,0.30965991,95419.0,95418.0,0.04706485]
[1735220278003,0.43350593,95419.0,95418.0,0.02106485]
[1735220278203,0.43367713,95419.0,95418.0,0.00506485]
[1735220278352,0.44014485,95419.0,95418.0,0.12235355]
[1735220278766,0.42940984,95419.0,95418.0,0.11735355]
[1735220278963,0.42940984,95419.0,95418.0,0.12935355]
[1735220279429,0.52940984,95419.0,95418.0,0.09735355]
[1735220279606,0.52940984,95419.0,95418.0,0.00306485]
[1735220279607,0.55041984,95419.0,95418.0,0.00306485]
[1735220279810,0.55041984,95419.0,95418.0,0.00606485]
[1735220280189,0.55041984,95419.0,95418.0,0.01006485]
[1735220280591,0.65440616,95419.0,95418.0,6.485e-05]
[1735220281879,0.55234378,95419.0,95418.0,6.485e-05]
[1735220282246,0.55440616,95419.0,95418.0,6.485e-05]
[1735220282548,0.45041984,95419.0,95418.0,6.485e-05]
[1735220282959,0.45041984,95419.0,95418.0,0.02306485]
[1735220283168,0.42940984,95419.0,95418.0,0.02406485]
[1735220283504,0.42940984,95419.0,95418.0,0.12406485]
[1735220283906,0.42734746,95419.0,95418.0,0.02406485]
[1735220284190,0.37874746,95419.0,95418.0,0.11869904]
[1735220284396,0.29924746,95419.0,95418.0,0.11869904]
[1735220285134,0.29924746,95419.0,95418.0,0.04014407]
[1735220285318,0.29924746,95419.0,95418.0,0.03914407]
[1735220285515,0.29924746,95419.0,95418.0,0.04114407]
[1735220285728,0.29924746,95419.0,95418.0,0.14114407]
[1735220285975,0.26323186,95419.0,95418.0,0.04114407]
[1735220286242,0.07813986,95419.0,95418.0,0.80502956]
[1735220286434,0.05661361,95419.0,95418.0,1.05296718]
[1735220286621,0.05014589,95419.0,95418.0,1.05356718]
[1735220286952,0.00547325,95419.0,95418.0,1.05156718]
[1735220287299,0.00547325,95419.0,95418.0,1.29956448]
[1735220287512,0.00547325,95419.0,95418.0,1.39956448]
[1735220287887,0.00547325,95419.0,95418.0,1.19092686]
[1735220288302,0.00547325,95419.0,95418.0,1.19892686]
[1735220288470,0.00547325,95419.0,95418.0,1.48177887]
[1735220288689,0.00219836,95438.0,95419.0,0.023]
[1735220288929,0.00219836,95438.0,95421.0,0.173]
[1735220289204,0.00219836,95438.0,95423.0,0.023]
[1735220289355,0.00219836,95438.0,95425.0,0.023]
[1735220289700,0.00013598,95438.0,95427.0,0.023]
[1735220289942,0.00219836,95438.0,95428.0,0.00104779]
[1735220290147,0.00219836,95438.0,95428.0,0.0523991]
[1735220290387,0.00013598,95438.0,95429.0,0.023]
[1735220290553,0.00206238,95437.0,95429.0,0.023]
[1735220291344,0.00013598,95438.0,95430.0,0.10398632]
[1735220291695,0.00013598,95438.0,95431.0,0.02404779]
[1735220291869,0.00013598,95438.0,95437.0,0.123]
[1735220292071,0.00013598,95438.0,95437.0,0.12803398]
[1735220292574,0.00013598,95438.0,95437.0,0.24083738]
[1735220292788,0.00013598,95438.0,95437.0,0.23978972]
[1735220293233,0.00013598,95438.0,95437.0,0.13978972]
[1735220293453,0.00013598,95438.0,95437.0,0.14983738]
[1735220293982,0.00013598,95438.0,95437.0,0.24983738]
[1735220294185,0.00013598,95438.0,95437.0,0.24878972]
[1735220294571,0.00013598,95438.0,95437.0,0.15278972]
[1735220295118,0.00013598,95438.0,95437.0,0.27340447]
[1735220295320,0.00013598,95438.0,95437.0,0.17340447]
[1735220296124,0.00013598,95438.0,95437.0,0.27445212]
[1735220296301,0.00013598,95438.0,95437.0,0.86420364]
[1735220296504,0.00013598,95438.0,95437.0,0.96420364]